bitfinex/quotes_SOLUSD_20220302
["timestamp","ask_amount","ask_price","bid_price","bid_amount"]
[1646206873320,97.49,102.37,102.27,5.0]
[1646206873523,60.85359581,102.36,102.26,225.48082298]
[1646206873717,60.85359581,102.36,102.26,256.89551289]
[1646206874323,216.85359581,102.36,102.26,147.35096409]
[1646206874519,97.49,102.34,102.26,5.48872254]
[1646206874718,106.668,102.34,102.26,0.48872254]
[1646206874918,118.208,102.34,102.26,0.48872254]
[1646206875318,45.74548326,102.33,102.26,0.48872254]
[1646206881425,45.74548326,102.33,102.26,121.84437242]
[1646206881725,3.91,102.37,102.27,2.54904003]
[1646206882134,53.1842,102.4,102.28,121.35564988]
[1646206882524,53.1842,102.4,102.29,10.16235769]
[1646206882525,57.97494141,102.39,102.29,10.16235769]
[1646206883630,57.97494141,102.39,102.29,131.51800757]
[1646206883830,57.97494141,102.39,102.3,2.54904003]
[1646206884029,57.97494141,102.39,102.31,129.62760327]
[1646206884229,57.97494141,102.39,102.31,153.49325315]
[1646206884430,57.97494141,102.39,102.32,2.54904003]
[1646206884631,57.97494141,102.39,102.33,7.61331766]
[1646206886058,22.5202,102.42,102.33,10.16235769]
[1646206887161,63.1971,102.44,102.33,137.44300757]
[1646206887162,51.6571,102.44,102.33,137.44300757]
[1646206887356,47.7501,102.44,102.33,148.98300757]
[1646206887556,47.7501,102.44,102.33,185.99113648]
[1646206887755,47.7501,102.44,102.34,102.49]
[1646206888156,43.82258503,102.43,102.35,34.6866433]
[1646206888560,43.82258503,102.43,102.37,7.61331766]
[1646206889558,43.82258503,102.43,102.36,2.54904003]
[1646206890659,43.82258503,102.43,102.37,34.75882515]
[1646206891859,43.82258503,102.43,102.36,17.33504003]
[1646206892060,43.82258503,102.43,102.36,2.54904003]
[1646206892261,43.82258503,102.43,102.34,49.17244003]
[1646206893061,43.82258503,102.43,102.34,83.62670328]
[1646206893263,58.47588503,102.43,102.34,83.62670328]
[1646206895263,43.82258503,102.43,102.34,195.76560328]
[1646206895465,43.82258503,102.43,102.34,219.63125316]
[1646206895662,43.82258503,102.43,102.34,268.17938207]
[1646206896266,43.82258503,102.43,102.35,5.0]
[1646206896462,43.82258503,102.43,102.36,5.29665768]
[1646206896663,43.82258503,102.43,102.36,7.84569771]
[1646206896864,43.82258503,102.43,102.37,2.54904003]
[1646206897162,43.82258503,102.43,102.38,29.4909617]
[1646206898364,14.6491,102.46,102.38,29.4909617]
[1646206898566,3.906,102.47,102.38,32.04000173]
[1646206899364,52.99829,102.46,102.38,32.04000173]
[1646206901467,22.9014,102.47,102.38,129.53000173]
[1646206901667,22.9014,102.47,102.38,176.36900833]
[1646206901867,22.9014,102.47,102.38,187.90900833]
[1646206902070,23.0045,102.49,102.38,187.90900833]
[1646206902268,23.0045,102.49,102.38,224.45678052]
[1646206902467,54.20774151,102.48,102.38,224.45678052]
[1646206902669,54.20774151,102.48,102.38,229.45678052]
[1646206903270,54.20774151,102.48,102.38,224.45678052]
[1646206903671,54.20774151,102.48,102.4,10.25995923]
[1646206903974,54.20774151,102.48,102.41,2.54904003]
[1646206908173,54.20774151,102.48,102.42,29.4909617]
[1646206909776,14.6413,102.52,102.42,126.9809617]
[1646206909777,26.1813,102.52,102.42,126.9809617]
[1646206909977,22.7645,102.53,102.43,2.54904003]
[1646206910877,59.11936607,102.52,102.43,2.54904003]
[1646206912178,59.11936607,102.52,102.43,35.95095652]
[1646206912778,82.51596607,102.52,102.43,35.95095652]
[1646206914782,82.51596607,102.52,102.44,2.54904003]
[1646206916887,194.64646607,102.52,102.44,2.54904003]
[1646206917085,194.64646607,102.52,102.42,87.1187835]
[1646206917286,198.54946607,102.52,102.42,50.69694003]
[1646206917486,101.05946607,102.52,102.42,50.69694003]
[1646206917786,198.54946607,102.52,102.42,50.69694003]
[1646206918186,198.54946607,102.52,102.42,48.1479]
[1646206918586,210.08946607,102.52,102.42,48.1479]
[1646206919610,277.21546607,102.52,102.4,2.54904003]
[1646206919793,280.75832087,102.52,102.38,2.54904003]
[1646206919989,14.6469,102.48,102.38,2.54904003]
[1646206920391,47.479713,102.47,102.39,38.5646271]
[1646206920791,47.479713,102.47,102.39,138.60366713]
[1646206920990,47.479713,102.47,102.39,184.3765953]
[1646206921894,49.0177,102.49,102.39,199.0184953]
[1646206922094,47.4732,102.52,102.39,245.39058666]
[1646206922293,47.4732,102.52,102.42,5.0]
[1646206922492,47.4732,102.52,102.42,102.49]
[1646206922695,47.4732,102.52,102.43,2.54904003]
[1646206922892,55.54742745,102.51,102.43,3.73533386]
[1646206923293,55.54742745,102.51,102.45,35.68383638]
[1646206923695,55.54742745,102.51,102.46,2.54904003]
[1646206924100,55.54742745,102.51,102.47,4.06708455]
[1646206924296,55.54742745,102.51,102.46,2.54904003]
[1646206924498,55.54742745,102.51,102.44,2.54904003]
[1646206924700,55.54742745,102.51,102.43,24.2322]
[1646206926000,70.18922745,102.51,102.43,24.2322]
[1646206927002,70.18922745,102.51,102.44,2.99890396]
[1646206927220,55.54742745,102.51,102.44,2.99890396]
[1646206928220,55.54742745,102.51,102.43,24.2322]
[1646206929221,55.54742745,102.51,102.43,61.86607952]
[1646206929822,55.54742745,102.51,102.43,37.63387952]
[1646206933626,55.54742745,102.51,102.42,97.49]
[1646206934025,55.54742745,102.51,102.42,100.03904003]
[1646206934628,55.54742745,102.51,102.43,31.44316052]
[1646206937829,55.54742745,102.51,102.43,33.99220055]
[1646206939728,55.54742745,102.51,102.43,131.48220055]
[1646206944534,47.4732,102.52,102.43,191.89162872]
[1646206944737,47.4732,102.52,102.43,203.43162872]
[1646206945436,96.65510564,102.52,102.43,203.43162872]
[1646206946841,96.65510564,102.52,102.43,208.43162872]
[1646206947240,30.0784,102.56,102.43,208.43162872]
[1646206947441,23.5893,102.55,102.45,97.49]
[1646206947643,23.5893,102.55,102.45,117.6]
[1646206947841,23.5893,102.55,102.46,2.54904003]
[1646206948044,23.5893,102.55,102.47,97.49]
[1646206948245,23.5893,102.55,102.47,105.79776041]
[1646206948445,43.36287037,102.56,102.48,25.34861148]
[1646206948646,43.36287037,102.56,102.5,128.93316052]
[1646206949247,43.36287037,102.56,102.5,131.48220055]
[1646206949645,43.36287037,102.56,102.5,2.54904003]
[1646206950047,43.36287037,102.56,102.48,22.5147]
[1646206950645,43.36287037,102.56,102.48,59.47773183]
[1646206951648,43.36287037,102.56,102.48,84.82634331]
[1646206952853,43.36287037,102.56,102.5,97.49]
[1646206953050,43.36287037,102.56,102.51,2.7878891]
[1646206953851,43.36287037,102.56,102.5,2.54904003]
[1646206955956,43.36287037,102.56,102.51,10.589917]
[1646206956359,43.36287037,102.56,102.51,13.13895703]
[1646206956557,43.36287037,102.56,102.51,2.54904003]
[1646206960160,43.36287037,102.56,102.49,6.44904003]
[1646206960360,43.36287037,102.56,102.45,14.482]
[1646206960361,43.36287037,102.56,102.46,3.9]
[1646206960562,54.90287037,102.56,102.45,17.03104003]
[1646206960760,54.90287037,102.56,102.46,3.902]
[1646206960974,54.90287037,102.56,102.46,30.41411145]
[1646206961174,57.99777037,102.56,102.47,134.9152144]
[1646206961375,43.36287037,102.56,102.48,3.9]
[1646206961775,43.36287037,102.56,102.49,7.42378659]
[1646206962176,43.36287037,102.56,102.49,111.36282662]
[1646206962576,43.36287037,102.56,102.49,28.50142662]
[1646206963178,140.85287037,102.56,102.49,2.54904003]
[1646206963375,11.54,102.55,102.46,25.81877812]
[1646206963576,131.8203,102.55,102.4,23.2993]
[1646206963776,23.5036,102.54,102.4,49.5721]
[1646206963977,35.0436,102.54,102.41,8.903]
[1646206964278,55.17493285,102.53,102.43,97.49]
[1646206964478,78.99773285,102.53,102.44,11.46357726]
[1646206964678,78.99773285,102.53,102.45,3.903]
[1646206964877,78.99773285,102.53,102.46,30.8363837]
[1646206967879,193.52244718,102.53,102.4,112.2228]
[1646206968080,205.06244718,102.53,102.41,5.0]
[1646206968283,226.80072455,102.53,102.41,5.0]
[1646206968580,230.70372455,102.53,102.41,5.0]
[1646206968778,230.70372455,102.53,102.42,37.61922143]
[1646206969179,312.41002915,102.53,102.42,37.61922143]
[1646206969879,308.50702915,102.53,102.42,37.61922143]
[1646206970079,313.50702915,102.53,102.42,37.61922143]
[1646206970279,291.50367387,102.53,102.42,37.61922143]
[1646206970480,226.80072455,102.53,102.42,37.61922143]
[1646206970678,231.80072455,102.53,102.42,37.61922143]
[1646206970882,210.06244718,102.53,102.42,37.61922143]
[1646206971181,286.94454062,102.53,102.38,24.96202787]
[1646206971379,156.0,102.51,102.38,5.0]
[1646206971580,14.6475,102.48,102.38,5.0]
[1646206971784,24.2053,102.47,102.39,3.905]
[1646206971980,48.87510619,102.46,102.4,37.27940952]
[1646206973679,24.2053,102.47,102.4,37.27940952]
[1646206973883,24.2053,102.47,102.39,12.87226765]
[1646206974081,31.0813,102.47,102.39,12.87226765]
[1646206974281,45.729,102.47,102.38,23.5199]
[1646206974882,149.20461774,102.46,102.37,39.09046204]
[1646206975083,153.10861774,102.46,102.35,159.0102]
[1646206975283,176.14531774,102.46,102.35,159.0102]
[1646206975685,187.68531774,102.46,102.35,159.0102]
[1646206976090,90.19531774,102.46,102.36,133.19039426]
[1646206976287,86.29131774,102.46,102.36,35.70039426]
[1646206976484,183.78131774,102.46,102.36,38.24943429]
[1646206976683,86.29131774,102.46,102.36,38.24943429]
[1646206978083,14.6506,102.45,102.36,38.24943429]
[1646206978286,52.3354213,102.44,102.36,38.24943429]
[1646206979083,52.3354213,102.44,102.36,35.70039426]
[1646206979683,52.3354213,102.44,102.37,2.54904003]
[1646206979882,52.3354213,102.44,102.38,6.5995667]
[1646206980483,23.0367,102.46,102.38,104.0895667]
[1646206980683,23.0367,102.46,102.39,2.54904003]
[1646206981783,54.07613261,102.45,102.39,2.54904003]
[1646206981984,54.07613261,102.45,102.4,34.48412783]
[1646206985492,54.07613261,102.45,102.39,2.54904003]
[1646206986297,54.07613261,102.45,102.38,3.904]
[1646206987694,166.21713261,102.45,102.34,21.97844003]
[1646206987895,35.9134,102.44,102.34,21.97844003]
[1646206988297,49.97390643,102.43,102.34,37.70115777]
[1646206988494,55.68790643,102.43,102.34,37.70115777]
[1646206989095,70.34240643,102.43,102.34,37.70115777]
[1646206990500,64.62840643,102.43,102.34,37.70115777]
[1646206991701,49.97390643,102.43,102.34,135.19115777]
[1646206991901,49.97390643,102.43,102.34,171.23107135]
[1646206992201,49.97390643,102.43,102.34,202.42187135]
[1646206992499,49.97390643,102.43,102.34,246.37070613]
[1646206992899,49.97390643,102.43,102.34,241.37070613]
[1646206993099,49.97390643,102.43,102.34,225.90137135]
[1646206994004,49.97390643,102.43,102.34,220.90137135]
[1646206994202,49.97390643,102.43,102.34,123.41137135]
[1646206994405,49.97390643,102.43,102.34,87.37145777]
[1646206994603,49.97390643,102.43,102.34,75.83145777]
[1646206995002,49.97390643,102.43,102.34,61.18065777]
[1646206995202,55.93190643,102.43,102.34,61.18065777]
[1646206995404,14.6548,102.42,102.34,26.02854003]
[1646206995609,18.5618,102.42,102.34,26.02854003]
[1646206995807,41.7194,102.42,102.34,26.02854003]
[1646206996006,41.7194,102.42,102.34,23.4795]
[1646206996206,37.8124,102.42,102.34,23.4795]
[1646206996407,53.6853715,102.41,102.34,62.02815485]
[1646206996905,53.6853715,102.41,102.34,38.54865485]
[1646207001118,53.6853715,102.41,102.34,136.03865485]
[1646207001322,53.6853715,102.41,102.36,3.75130611]
[1646207001621,53.6853715,102.41,102.35,2.54904003]
[1646207001826,53.6853715,102.41,102.36,2.54904003]
[1646207003438,53.6853715,102.41,102.33,36.74497122]
[1646207004238,53.6853715,102.41,102.34,39.57328257]
[1646207006440,53.6853715,102.41,102.33,36.74497122]
[1646207007644,53.6853715,102.41,102.34,34.63578626]
[1646207009654,53.6853715,102.41,102.35,2.54904003]
[1646207010852,53.6853715,102.41,102.35,38.25230552]
[1646207013657,53.6853715,102.41,102.35,135.74230552]
[1646207013857,23.1576,102.42,102.35,135.74230552]
[1646207014063,14.6529,102.44,102.36,2.54904003]
[1646207014255,23.0367,102.46,102.36,2.54904003]
[1646207014456,39.5056,102.5,102.37,97.49]
[1646207014670,14.647,102.48,102.38,37.9674]
[1646207014860,46.59695975,102.47,102.4,6.59669547]
[1646207015357,46.59695975,102.47,102.38,40.51644003]
[1646207016154,46.59695975,102.47,102.39,41.69979377]
[1646207017756,46.59695975,102.47,102.39,44.2488338]
[1646207023765,144.08695975,102.47,102.39,44.2488338]
[1646207023965,158.73445975,102.47,102.38,23.3216]
[1646207024166,189.05773712,102.47,102.38,23.3216]
[1646207024566,200.59773712,102.47,102.38,23.3216]
[1646207024767,200.59773712,102.47,102.37,24.7903]
[1646207024967,14.6514,102.45,102.37,24.7903]
[1646207025167,46.09434084,102.44,102.37,24.7903]
[1646207026272,53.01734084,102.44,102.37,24.7903]
[1646207026467,53.01734084,102.44,102.37,27.33934003]
[1646207026868,67.66924084,102.44,102.37,24.7903]
[1646207027072,150.50734084,102.44,102.35,138.95854003]
[1646207027369,150.50734084,102.44,102.35,136.4095]
[1646207027970,53.01734084,102.44,102.36,34.66607331]
[1646207028169,46.09434084,102.44,102.36,34.66607331]
[1646207028390,57.9556982,102.42,102.36,34.66607331]
[1646207029790,14.6535,102.43,102.36,34.66607331]
[1646207030391,113.8107,102.46,102.36,132.15607331]
[1646207030595,53.4257,102.46,102.37,2.54904003]
[1646207030793,48.18322988,102.45,102.38,7.63388765]
[1646207031091,48.18322988,102.45,102.38,10.18292768]
[1646207031691,49.5197,102.46,102.38,10.18292768]
[1646207031692,49.5197,102.46,102.39,97.49]
[1646207032192,49.5197,102.46,102.4,2.54904003]
[1646207032791,102.14664741,102.46,102.41,34.66607331]
[1646207033292,49.5197,102.46,102.41,34.66607331]
[1646207037800,3.904,102.49,102.41,132.15607331]
[1646207038007,23.1964,102.51,102.41,141.82011334]
[1646207038203,23.1964,102.51,102.43,97.49]
[1646207038601,23.1964,102.51,102.43,105.03904003]
[1646207038800,44.06234707,102.5,102.44,7.63388765]
[1646207040201,44.06234707,102.5,102.42,37.956]
[1646207040403,44.06234707,102.5,102.42,23.3162]
[1646207041301,44.06234707,102.5,102.43,35.94676082]
[1646207042002,58.70554707,102.5,102.43,35.94676082]
[1646207042403,58.70554707,102.5,102.42,23.3162]
[1646207042804,62.60854707,102.5,102.42,23.3162]
[1646207043405,62.60854707,102.5,102.43,33.31013409]
[1646207044105,58.70554707,102.5,102.43,33.31013409]
[1646207048107,156.19554707,102.5,102.41,14.4224]
[1646207048308,120.6842,102.49,102.4,27.0766]
[1646207048509,14.6463,102.48,102.4,27.0766]
[1646207049110,59.98769197,102.47,102.41,40.0045774]
[1646207050310,59.98769197,102.47,102.4,27.0766]
[1646207050511,74.63539197,102.47,102.4,3.904]
[1646207050911,97.25989197,102.47,102.4,3.904]
[1646207051310,97.25989197,102.47,102.4,38.20514762]
[1646207052515,194.74989197,102.47,102.4,38.20514762]
[1646207055316,194.74989197,102.47,102.4,3.904]
[1646207055616,3.904,102.46,102.37,22.6914]
[1646207055815,112.1416,102.45,102.37,22.6914]
[1646207056018,97.49,102.45,102.37,22.6914]
[1646207056217,44.06234707,102.44,102.38,39.18761566]
[1646207056617,44.06234707,102.44,102.38,36.63857563]
[1646207057017,58.71414707,102.44,102.38,36.63857563]
[1646207059822,58.71414707,102.44,102.36,24.3447]
[1646207060421,156.20414707,102.44,102.36,24.3447]
[1646207060823,156.20414707,102.44,102.36,58.11131532]
[1646207063523,58.71414707,102.44,102.36,58.11131532]
[1646207064123,44.06234707,102.44,102.36,58.11131532]
[1646207064325,44.06234707,102.44,102.36,60.66035535]
[1646207064624,44.06234707,102.44,102.36,82.35571655]
[1646207065228,44.06234707,102.44,102.37,5.0]
[1646207065424,44.06234707,102.44,102.38,8.53334564]
[1646207067630,38.3034,102.46,102.38,8.53334564]
[1646207067833,23.6533,102.46,102.38,108.57238567]
[1646207068031,22.6245,102.47,102.38,130.26774687]
[1646207068230,22.6245,102.47,102.38,165.14841746]
[1646207068431,22.6245,102.47,102.38,201.36671746]
[1646207068731,58.30525034,102.46,102.38,73.99604687]
[1646207068932,58.30525034,102.46,102.38,35.76068567]
[1646207070452,72.95445034,102.46,102.38,33.21164564]
[1646207070652,174.34845034,102.46,102.38,33.21164564]
[1646207070853,183.04545034,102.46,102.38,33.21164564]
[1646207071050,194.58545034,102.46,102.38,33.21164564]
[1646207072051,185.88845034,102.46,102.38,8.53334564]
[1646207075559,88.39845034,102.46,102.38,8.53334564]
[1646207075756,181.98445034,102.46,102.38,8.53334564]
[1646207076357,181.98445034,102.46,102.38,31.66204564]
[1646207077359,185.88845034,102.46,102.38,31.66204564]
[1646207079663,185.88845034,102.46,102.38,23.1287]
[1646207080862,181.98445034,102.46,102.38,53.21354079]
[1646207083566,181.98445034,102.46,102.38,23.1287]
[1646207084665,236.29556105,102.46,102.35,53.85098593]
[1646207084864,143.2347887,102.44,102.35,53.85098593]
[1646207085065,45.52475019,102.42,102.35,53.85098593]
[1646207086767,45.52475019,102.42,102.35,22.944]
[1646207089874,45.52475019,102.42,102.36,8.40507229]
[1646207090874,3.906,102.44,102.36,105.89507229]
[1646207091076,18.5572,102.45,102.36,10.95411232]
[1646207091674,14.6512,102.45,102.37,24.0515]
[1646207091878,48.34954208,102.44,102.37,24.0515]
[1646207092276,63.00154208,102.44,102.37,24.0515]
[1646207093278,160.49154208,102.44,102.37,24.0515]
[1646207093478,14.6536,102.43,102.37,24.0515]
[1646207094082,38.7396,102.43,102.37,24.0515]
[1646207094481,48.17843536,102.42,102.37,24.0515]
[1646207097783,48.17843536,102.42,102.37,33.88681169]
[1646207097984,38.7396,102.43,102.37,33.88681169]
[1646207098787,24.086,102.43,102.37,33.88681169]
[1646207099789,43.91214564,102.42,102.37,33.88681169]
[1646207100187,24.086,102.43,102.37,33.88681169]
[1646207101000,3.906,102.45,102.37,136.95981169]
[1646207101291,85.86265326,102.46,102.37,39.46981169]
[1646207101490,85.86265326,102.46,102.37,151.04885172]
[1646207101696,81.95865326,102.46,102.37,53.55885172]
[1646207101890,46.79948578,102.44,102.37,42.01885172]
[1646207102089,46.79948578,102.44,102.37,33.88681169]
[1646207102289,68.97182021,102.44,102.37,33.88681169]
[1646207103094,14.6535,102.43,102.37,33.88681169]
[1646207103909,38.265,102.43,102.37,33.88681169]
[1646207106514,23.6115,102.43,102.37,33.88681169]
[1646207107313,3.906,102.45,102.37,33.88681169]
[1646207107514,41.909,102.46,102.37,142.41385172]
[1646207107912,41.909,102.46,102.37,44.92385172]
[1646207107913,38.005,102.46,102.37,44.92385172]
[1646207109215,23.3551,102.46,102.37,44.92385172]
[1646207109419,23.3551,102.46,102.37,53.82785172]
[1646207109615,23.3551,102.46,102.38,97.49]
[1646207109815,18.5512,102.48,102.38,97.49]
[1646207110016,14.6472,102.48,102.41,31.99362735]
[1646207110214,14.6472,102.48,102.41,39.36262735]
[1646207110818,36.81953443,102.48,102.41,31.99362735]
[1646207111016,18.5524,102.47,102.41,31.99362735]
[1646207111416,38.8284,102.47,102.41,31.99362735]
[1646207115119,38.8284,102.47,102.39,27.5941]
[1646207115418,253.2650177,102.47,102.39,3.904]
[1646207115621,14.6539,102.44,102.38,24.7534]
[1646207116021,3.904,102.46,102.38,24.7534]
[1646207116218,3.904,102.46,102.39,30.54630959]
[1646207116219,45.42126399,102.45,102.39,30.54630959]
[1646207116619,60.07186399,102.45,102.39,30.54630959]
[1646207117021,60.07186399,102.45,102.38,24.7534]
[1646207117219,157.56186399,102.45,102.37,28.4697]
[1646207117419,97.49,102.43,102.37,24.52961367]
[1646207117619,97.49,102.43,102.34,28.8828]
[1646207117819,97.49,102.41,102.34,24.9788]
[1646207118019,72.30075876,102.4,102.34,24.9788]
[1646207118219,155.13305876,102.4,102.32,3.906]
[1646207118423,221.95005876,102.4,102.32,3.906]
[1646207118624,156.0,102.38,102.29,24.9788]
[1646207118822,11.54,102.37,102.28,3.907]
[1646207119022,97.49,102.36,102.27,3.908]
[1646207119222,143.89698028,102.35,102.27,30.37701536]
[1646207119828,143.89698028,102.35,102.26,27.03212254]
[1646207120024,158.56378028,102.35,102.26,27.03212254]
[1646207120223,170.10378028,102.35,102.26,27.03212254]
[1646207120424,170.10378028,102.35,102.26,4.39672254]
[1646207120624,3.908,102.34,102.26,0.48872254]
[1646207120824,3.908,102.34,102.26,31.35256064]
[1646207121225,3.908,102.34,102.26,0.48872254]
[1646207121426,112.1575,102.33,102.26,0.48872254]
[1646207121627,11.54,102.32,102.26,0.48872254]
[1646207121826,97.49,102.31,102.26,0.48872254]
[1646207122027,103.802,102.31,102.26,0.48872254]
[1646207122227,155.13305876,102.3,102.26,0.48872254]
[1646207122426,169.80605876,102.3,102.26,0.48872254]
[1646207122624,232.22605876,102.3,102.2,163.8834]
[1646207122826,243.76605876,102.3,102.2,116.81]
[1646207123025,185.25605876,102.3,102.2,116.81]
[1646207123225,185.25605876,102.3,102.18,3.911]
[1646207123427,185.25605876,102.3,102.18,43.02637676]
[1646207123625,199.32910339,102.3,102.18,39.11537676]
[1646207123824,14.6805,102.25,102.18,39.11537676]
[1646207124027,20.6255,102.25,102.16,3.912]
[1646207124624,129.6555,102.25,102.16,3.912]
[1646207124832,129.6555,102.25,102.14,3.912]
[1646207125025,14.6882,102.21,102.14,3.912]
[1646207125229,45.43645171,102.2,102.15,7.5962978]
[1646207126225,45.43645171,102.2,102.12,3.914]
[1646207126425,60.12465171,102.2,102.12,3.914]
[1646207126625,60.12465171,102.2,102.11,23.5776]
[1646207127227,60.12465171,102.2,102.11,28.5776]
[1646207127430,60.12465171,102.2,102.12,32.36295266]
[1646207128432,45.43645171,102.2,102.12,37.36295266]
[1646207129232,45.43645171,102.2,102.12,32.36295266]
[1646207129431,3.915,102.19,102.12,32.36295266]
[1646207129632,45.16770284,102.18,102.12,32.36295266]
[1646207129831,45.16770284,102.18,102.09,5.0]
[1646207130832,3.916,102.17,102.1,31.96230225]
[1646207131032,49.40756326,102.16,102.1,31.96230225]
[1646207131233,49.40756326,102.16,102.09,5.0]
[1646207131436,49.40756326,102.16,102.07,3.916]
[1646207131633,49.40756326,102.16,102.06,3.916]
[1646207132234,49.40756326,102.16,102.07,42.70374587]
[1646207132835,64.10166326,102.16,102.07,42.70374587]
[1646207133035,75.64166326,102.16,102.07,42.70374587]
[1646207133236,101.406,102.15,102.07,42.70374587]
[1646207133434,48.50535693,102.14,102.07,42.70374587]
[1646207133838,67.07835693,102.14,102.07,42.70374587]
[1646207135440,67.07835693,102.14,102.04,3.916]
[1646207135639,3.918,102.13,102.04,3.916]
[1646207135844,112.948,102.13,102.04,3.916]
[1646207136439,49.05236306,102.12,102.04,35.366114]
[1646207136839,52.97036306,102.12,102.04,35.366114]
[1646207137440,64.51036306,102.12,102.04,31.450114]
[1646207138843,42.5827836,102.12,102.04,31.450114]
[1646207139051,11.54,102.12,102.04,31.450114]
[1646207139244,3.918,102.15,102.04,36.450114]
[1646207139441,3.918,102.15,102.04,45.015114]
[1646207139643,3.918,102.15,102.04,40.015114]
[1646207139843,3.918,102.15,102.05,5.0]
[1646207140045,55.74920737,102.15,102.06,29.34814896]
[1646207140448,67.28920737,102.15,102.06,29.34814896]
[1646207143050,97.49,102.14,102.06,29.34814896]
[1646207143247,33.72052967,102.13,102.06,29.34814896]
[1646207144246,49.25757228,102.11,102.06,29.34814896]
[1646207144848,84.7488,102.14,102.06,29.34814896]
[1646207145047,26.2388,102.14,102.06,29.34814896]
[1646207145247,123.7288,102.14,102.06,29.34814896]
[1646207146049,56.4084172,102.13,102.06,29.34814896]
[1646207146253,60.3244172,102.13,102.06,29.34814896]
[1646207146450,56.4084172,102.13,102.06,29.34814896]
[1646207150658,153.8984172,102.13,102.04,8.916]
[1646207150861,169.3564172,102.13,102.04,5.0]
[1646207151660,169.3564172,102.13,102.05,52.87196551]
[1646207151859,71.8664172,102.13,102.05,52.87196551]
[1646207152478,169.3564172,102.13,102.05,52.87196551]
[1646207152779,184.0556172,102.13,102.05,52.87196551]
[1646207152980,180.1376172,102.13,102.05,52.87196551]
[1646207153178,180.1376172,102.13,102.03,14.6962]
[1646207153381,3.918,102.12,102.03,14.6962]
[1646207154178,29.14331984,102.11,102.03,14.6962]
[1646207154377,126.63331984,102.11,102.02,57.53568907]
[1646207154579,126.63331984,102.11,102.02,61.45468907]
[1646207155179,29.14331984,102.11,102.02,61.45468907]
[1646207156181,43.84451984,102.11,102.02,61.45468907]
[1646207156380,29.14331984,102.11,102.02,76.15438907]
[1646207156582,29.14331984,102.11,102.02,78.7034291]
[1646207156780,29.14331984,102.11,102.02,176.1934291]
[1646207156982,29.14331984,102.11,102.02,78.7034291]
[1646207157181,11.54,102.13,102.02,78.7034291]
[1646207157381,11.54,102.13,102.03,5.0]
[1646207157581,11.54,102.13,102.04,14.6967]
[1646207157783,36.318,102.15,102.04,21.16374003]
[1646207158181,48.35883998,102.14,102.05,26.53998539]
[1646207158981,48.35883998,102.14,102.05,41.23468539]
[1646207159183,148.504,102.15,102.05,41.23468539]
[1646207159383,34.9331,102.16,102.05,146.27372542]
[1646207159584,23.3931,102.16,102.06,3.916]
[1646207159792,24.9781,102.17,102.06,10.671]
[1646207159986,24.9781,102.17,102.07,2.54904003]
[1646207160187,59.93576436,102.16,102.08,57.26370194]
[1646207160386,59.93576436,102.16,102.08,76.95470194]
[1646207160586,157.42576436,102.16,102.08,62.26370194]
[1646207160787,161.34176436,102.16,102.08,62.26370194]
[1646207161191,231.39176436,102.16,102.08,5.0]
[1646207161387,231.39176436,102.16,102.05,48.2126]
[1646207161388,246.08546436,102.16,102.05,48.2126]
[1646207161989,272.95044758,102.16,102.03,14.6978]
[1646207162189,272.95044758,102.16,102.04,58.18897911]
[1646207162891,294.72595912,102.16,102.04,58.18897911]
[1646207163090,156.0,102.14,102.04,58.18897911]
[1646207163291,112.1904,102.12,102.04,58.18897911]
[1646207163492,200.40642185,102.11,102.02,8.916]
[1646207163693,211.94642185,102.11,102.0,3.919]
[1646207163892,239.83172185,102.11,102.0,8.919]
[1646207164393,239.83172185,102.11,102.01,52.75495197]
[1646207164592,14.7051,102.09,102.01,52.75495197]
[1646207164793,32.57300369,102.09,102.01,52.75495197]
[1646207167694,130.06300369,102.09,102.01,52.75495197]
[1646207168097,32.57300369,102.09,102.01,52.75495197]
[1646207168497,130.06300369,102.09,102.01,52.75495197]
[1646207168699,32.57300369,102.09,102.01,52.75495197]
[1646207169297,17.86790369,102.09,102.01,67.45645197]
[1646207169498,17.86790369,102.09,102.01,70.005492]
[1646207170498,115.35790369,102.09,102.01,70.005492]
[1646207170700,137.08220369,102.09,102.0,5.0]
[1646207170901,207.13220369,102.09,101.99,24.8862]
[1646207171207,3.92,102.08,101.98,5.0]
[1646207171403,156.0,102.06,101.98,5.0]
[1646207171701,14.7118,102.03,101.98,5.0]
[1646207171905,23.6648,102.03,101.99,39.81685343]
[1646207172105,17.86790369,102.02,101.98,5.0]